Workbook

Sheet ploeg 1 rooster
B2: Pietje puk | J2: =CONCATENATE("tekort ",B18-1) -> tekort 2018 | L2: =CONCATENATE("tegoed ",B18-1) -> tegoed 2018 | N2: =CONCATENATE("tegoed ",B18) -> tegoed 2019 | P2: Saldi | S2: Nieuwjaarsdag 1 januari | W2: De minister van onderwijs | AB2: Vakantie's | AG2: … | AI2: … | AK2: diensten totaal | AN2: =((AN22+AN26+AN30+AN34+AN38+AN42+AN46+AN50+AN54+AN58+AN62+AN66)-AN5) -> 211
H3: VAKV | J3: 13:06 | L3: 0.1708333333 | N3: 8.125 | P3: =(L3+N3)-((B14*450)/1440)-((N14*450)/1440/2)-((P14*450)/1440/3.75)-J3 -> 1.1875 | S3: Pasen 21 - 22 april | W3: bepaalt de zomervakantie. | AB3: regio Midden | AG3: =COUNTIF(E19:AI66,"w") -> 0 | AI3: =COUNTIF(E19:AI66,"s") -> 0 | AK3: diensten niet gewerkt | AN3: =((B14+H14+F14+J14+L14+T14+R14+X14)+AN6+AN8+AN11) -> 37 | AO3: =SUM(AN2-AN4) -> 31.5 | AP3: als je hier 10:66 invuld dan wordt die tijd gecorrigeerd , probeer maar !
H4: TvT | L4: 0.15625 | N4: =SUM(V14-D15) -> 0.15625 | P4: =L4+(V14-D15)-J4 -> 0.3125 | S4: Koningsdag 27 april | W4: De data voor alle andere | AB4: Kerst t/m 6 januari | AG4: toets -W- | AI4: toets -S- | AK4: diensten gewerkt | AN4: =(AN2-AN3)+AN7+AN9+AN10 -> 179.5
E5: Ploeg 1 | H5: ADV | J5: 8:29 | L5: 25:02 | P5: =(L5+N5)-((F14*450)/1440)-J5 -> 0.6895833333 | S5: Hemelvaartsdag 30 mei | W5: vakantie`s zijn niet verplicht, | AB5: Voorjaars 23-2 t/m 3-3 | AK5: feestdagen vrij | AN5: =X14 -> 7
H6: 90prD | L6: 6:18 | P6: =(L6+N6)-((H14*450)/1440)-J6 -> 0.2625 | S6: Pinksteren 9 -10 juni | W6: scholen bepalen deze zelf. | AB6: Mei 27-4 t/m 5-5 | AG6: vergadering | AI6: … | AK6: halve dagen | AN6: =N14/2 -> 0 | AO6: (dagen) | AP6: hier heb ik 24:59 ingevuld . Tot deze tijd gaat het goed , wanneer deze waarde groter word corrigeerd hij niet meer
H7: CorDa | L7: 13:28 | P7: =(L7+N7)-((J14*450)/1440)-J7 -> 0.5611111111 | S7: Kerstmis 25 - 26 dec. | W7: Voor deze data worden wel | AB7: Zomer 20-7 t/m 1-9 | AG7: =COUNTIF(E19:AI66,"i") -> 2 | AI7: =COUNTIF(E19:AI66,"e") -> 0 | AK7: tvt opgebouwd | AN7: =V14*3.2 -> 0.5 | AO7: (dagen)
B8: =AN2 -> 211 | C8: diensten | E8: =AK19 -> 72 | F8: =AL19 -> 74 | G8: =AM19 -> 72 | H8: LevDa | J8: 10:15 | L8: 1.038888889 | P8: =(L8+N8)-((L14*450)/1440)-J8 -> 0.6118055556 | W8: adviezen gegeven. | AB8: Herfst 19-10 t/m 27-10 | AG8: toets -i- | AI8: toets -E- | AK8: tvt opgenomen | AN8: =D15*3.2 -> 0 | AO8: (dagen)
B9: =AO3 -> 31.5 | C9: diensten niet werken | H9: totaal | I9: u:min | J9: =SUM(J3:J8) -> 0 | L9: =SUM(L3:L8) -> 1.365972222 | N9: =SUM(N3:N8) -> 8.28125 | P9: =SUM(P3:P8) -> 3.625 | S9: Zo-Wint.tijd 31-3 & 27-10 | W9: Plaatselijk of regionaal kan | AB9: Kerst vanaf 21-12 | AK9: extra gewerkt | AN9: =AB14+AD14+Z14 -> 5 | AO9: (dagen)
B10: =AN4 -> 179.5 | C10: diensten werken | I10: dagen | J10: =J9*3.2 -> 0 | L10: =L9*3.2 -> 4.371111111 | N10: =N9*3.2 -> 26.5 | P10: =P9*3.2 -> 11.6 | W10: men hiervan afwijken. | AG10: … | AI10: … | AK10: extra gewerkt in tvt | AN10: =D14*3.2 -> 0 | AO10: (dagen) | AP10: hier heb ik 24:61 ingevuld . Dat zou ik graag zien dat deze ook gecorrigeerd wordt naar 25:01
AG11: =COUNTIF(E19:AI66,"d") -> 0 | AI11: =COUNTIF(E19:AI66,"k") -> 0 | AK11: 2 uur vakv | AN11: =P14/3.75 -> 0 | AO11: (dagen)
B12: VAKV | D12: TvT | F12: ADV | H12: 90prD | J12: CorDa | L12: LevDa | N12: Halve | P12: 2 uur | R12: Bijzonder | T12: Ziek | V12: TvT | X12: Feestdagen | Z12: overwerk | AD12: overwerk | AG12: toets -D- | AI12: toets -K-
B13: Dagen | D13: opgenomen | F13: Dagen | H13: Dagen | J13: Dagen | L13: Dagen | N13: VAKV | P13: VAKV | R13: verlof | T13: Dagen | V13: opgebouwd | X13: op dienst | Z13: feestdag | AB13: overwerk | AD13: za-zo nacht
B14: =COUNTIF(E19:AI66,"v") -> 21 | F14: =COUNTIF(E19:AI66,"a") -> 0 | H14: =COUNTIF(E19:AI66,"r") -> 0 | J14: =COUNTIF(E19:AI66,"c") -> 0 | L14: =COUNTIF(E19:AI66,"l") -> 0 | N14: =COUNTIF(E19:AI66,"h") -> 0 | P14: =COUNTIF(E19:AI66,"t") -> 0 | R14: =COUNTIF(E19:AI66,"b") -> 1 | T14: =COUNTIF(E19:AI66,"z") -> 8 | V14: =SUM(E20:AI20,E24:AI24,E28:AI28,E32:AI32,E36:AI36,E40:AI40,E44:AI44,E48:AI48,E52:AI52,E56:AI56,E60:AI60,E64:AI64) -> 0.15625 | X14: 7 | Z14: =COUNTIF(E19:AI66,"f") -> 5 | AB14: =COUNTIF(E19:AI66,"x") -> 0 | AD14: =COUNTIF(E19:AI66,"u") -> 0 | AF14: Datum : | AH14: =NOW() -> 2019-10-15T22:08:53.420
D15: =SUM(E21:AI21,E25:AI25,E29:AI29,E33:AI33,E37:AI37,E41:AI41,E45:AI45,E49:AI49,E53:AI53,E57:AI57,E61:AI61,E65:AI65) -> 0
B16: toets -V- | D16: in tijd | F16: toets -A- | H16: toets -R- | J16: toets -C- | L16: toets -L- | N16: toets -H- | P16: toets -T- | R16: toets -B- | T16: toets -Z- | V16: in tijd | Z16: toets -F- | AB16: toets -X- | AD16: toets -U-
B18: 2019 | E18: 1 | F18: 2 | G18: 3 | H18: 4 | I18: 5 | J18: 6 | K18: 7 | L18: 8 | M18: 9 | N18: 10 | O18: 11 | P18: 12 | Q18: 13 | R18: 14 | S18: 15 | T18: 16 | U18: 17 | V18: 18 | W18: 19 | X18: 20 | Y18: 21 | Z18: 22 | AA18: 23 | AB18: 24 | AC18: 25 | AD18: 26 | AE18: 27 | AF18: 28 | AG18: 29 | AH18: 30 | AI18: 31 | AK18: totaal | AL18: totaal | AM18: totaal
B19: Januari | E19: di | F19: wo | G19: do | H19: vr | I19: za | J19: zo | K19: ma | L19: di | M19: wo | N19: do | O19: vr | P19: za | Q19: zo | R19: ma | S19: di | T19: wo | U19: do | V19: vr | W19: za | X19: zo | Y19: ma | Z19: di | AA19: wo | AB19: do | AC19: vr | AD19: za | AE19: zo | AF19: ma | AG19: di | AH19: wo | AI19: do | AK19: =SUM(AK66,AK62,AK58,AK54,AK50,AK46,AK42,AK38,AK34,AK30,AK26,AK22) -> 72 | AL19: =SUM(AL66,AL62,AL58,AL54,AL50,AL46,AL42,AL38,AL34,AL30,AL26,AL22) -> 74 | AM19: =SUM(AM66,AM62,AM58,AM54,AM50,AM46,AM42,AM38,AM34,AM30,AM26,AM22) -> 72
T20: i | AG20: b | AH20: i
E21: f | AK21: nacht | AL21: middag | AM21: ochtend | AN21: totaal
E22: m | F22: n | G22: n | K22: o | L22: o | M22: m | N22: m | O22: m | T22: o | U22: o | V22: n | W22: n | X22: n | AC22: o | AD22: m | AE22: m | AF22: n | AG22: n | AK22: =COUNTIF(E22:AI22,"n") -> 7 | AL22: =COUNTIF(E22:AI22,"m") -> 6 | AM22: =COUNTIF(E22:AI22,"o") -> 5 | AN22: =AK22+AL22+AM22 -> 18
B23: Februari | E23: vr | F23: za | G23: zo | H23: ma | I23: di | J23: wo | K23: do | L23: vr | M23: za | N23: zo | O23: ma | P23: di | Q23: wo | R23: do | S23: vr | T23: za | U23: zo | V23: ma | W23: di | X23: wo | Y23: do | Z23: vr | AA23: za | AB23: zo | AC23: ma | AD23: di | AE23: wo | AF23: do
AK25: nacht | AL25: middag | AM25: ochtend
F26: o | G26: o | H26: m | I26: m | J26: n | K26: n | O26: o | P26: o | Q26: m | R26: m | S26: m | X26: o | Y26: o | Z26: n | AA26: n | AB26: n | AK26: =COUNTIF(E26:AI26,"n") -> 5 | AL26: =COUNTIF(E26:AI26,"m") -> 5 | AM26: =COUNTIF(E26:AI26,"o") -> 6 | AN26: =AK26+AL26+AM26 -> 16
B27: Maart | E27: vr | F27: za | G27: zo | H27: ma | I27: di | J27: wo | K27: do | L27: vr | M27: za | N27: zo | O27: ma | P27: di | Q27: wo | R27: do | S27: vr | T27: za | U27: zo | V27: ma | W27: di | X27: wo | Y27: do | Z27: vr | AA27: za | AB27: zo | AC27: ma | AD27: di | AE27: wo | AF27: do | AG27: vr | AH27: za | AI27: zo
AK29: nacht | AL29: middag | AM29: ochtend
E30: o | F30: m | G30: m | H30: n | I30: n | M30: o | N30: o | O30: m | P30: m | Q30: n | R30: n | V30: o | W30: o | X30: m | Y30: m | Z30: m | AE30: o | AF30: o | AG30: n | AH30: n | AI30: n | AK30: =COUNTIF(E30:AI30,"n") -> 7 | AL30: =COUNTIF(E30:AI30,"m") -> 7 | AM30: =COUNTIF(E30:AI30,"o") -> 7 | AN30: =AK30+AL30+AM30 -> 21
B31: April | E31: ma | F31: di | G31: wo | H31: do | I31: vr | J31: za | K31: zo | L31: ma | M31: di | N31: wo | O31: do | P31: vr | Q31: za | R31: zo | S31: ma | T31: di | U31: wo | V31: do | W31: vr | X31: za | Y31: zo | Z31: ma | AA31: di | AB31: wo | AC31: do | AD31: vr | AE31: za | AF31: zo | AG31: ma | AH31: di
Z33: f | AK33: nacht | AL33: middag | AM33: ochtend
I34: o | J34: m | K34: m | L34: n | M34: n | Q34: o | R34: o | S34: m | T34: m | U34: n | V34: n | Z34: o | AA34: o | AB34: m | AC34: m | AD34: m | AK34: =COUNTIF(E34:AI34,"n") -> 4 | AL34: =COUNTIF(E34:AI34,"m") -> 7 | AM34: =COUNTIF(E34:AI34,"o") -> 5 | AN34: =AK34+AL34+AM34 -> 16
B35: Mei | E35: wo | F35: do | G35: vr | H35: za | I35: zo | J35: ma | K35: di | L35: wo | M35: do | N35: vr | O35: za | P35: zo | Q35: ma | R35: di | S35: wo | T35: do | U35: vr | V35: za | W35: zo | X35: ma | Y35: di | Z35: wo | AA35: do | AB35: vr | AC35: za | AD35: zo | AE35: ma | AF35: di | AG35: wo | AH35: do | AI35: vr
AH37: f | AK37: nacht | AL37: middag | AM37: ochtend
E38: o | F38: o | G38: n | H38: n | I38: n | N38: o | O38: m | P38: m | Q38: n | R38: n | V38: o | W38: o | X38: m | Y38: m | Z38: n | AA38: n | AE38: o | AF38: o | AG38: m | AH38: m | AI38: m | AK38: =COUNTIF(E38:AI38,"n") -> 7 | AL38: =COUNTIF(E38:AI38,"m") -> 7 | AM38: =COUNTIF(E38:AI38,"o") -> 7 | AN38: =AK38+AL38+AM38 -> 21
B39: Juni | E39: za | F39: zo | G39: ma | H39: di | I39: wo | J39: do | K39: vr | L39: za | M39: zo | N39: ma | O39: di | P39: wo | Q39: do | R39: vr | S39: za | T39: zo | U39: ma | V39: di | W39: wo | X39: do | Y39: vr | Z39: za | AA39: zo | AB39: ma | AC39: di | AD39: wo | AE39: do | AF39: vr | AG39: za | AH39: zo
X40: 03:45:00
L41: f | M41: f | AK41: nacht | AL41: middag | AM41: ochtend
I42: o | J42: o | K42: n | L42: n | M42: n | R42: o | S42: m | T42: m | U42: n | V42: n | Z42: o | AA42: o | AB42: m | AC42: m | AD42: n | AE42: n | AK42: =COUNTIF(E42:AI42,"n") -> 7 | AL42: =COUNTIF(E42:AI42,"m") -> 4 | AM42: =COUNTIF(E42:AI42,"o") -> 5 | AN42: =AK42+AL42+AM42 -> 16
B43: Juli | E43: ma | F43: di | G43: wo | H43: do | I43: vr | J43: za | K43: zo | L43: ma | M43: di | N43: wo | O43: do | P43: vr | Q43: za | R43: zo | S43: ma | T43: di | U43: wo | V43: do | W43: vr | X43: za | Y43: zo | Z43: ma | AA43: di | AB43: wo | AC43: do | AD43: vr | AE43: za | AF43: zo | AG43: ma | AH43: di | AI43: wo
E44: v | F44: v | G44: v | H44: v | I44: v | N44: v | O44: v | P44: v | Q44: v | R44: v
AK45: nacht | AL45: middag | AM45: ochtend
E46: o | F46: o | G46: m | H46: m | I46: m | N46: o | O46: o | P46: n | Q46: n | R46: n | W46: o | X46: m | Y46: m | Z46: n | AA46: n | AE46: o | AF46: o | AG46: m | AH46: m | AI46: n | AK46: =COUNTIF(E46:AI46,"n") -> 6 | AL46: =COUNTIF(E46:AI46,"m") -> 7 | AM46: =COUNTIF(E46:AI46,"o") -> 7 | AN46: =AK46+AL46+AM46 -> 20
B47: Augustus | E47: do | F47: vr | G47: za | H47: zo | I47: ma | J47: di | K47: wo | L47: do | M47: vr | N47: za | O47: zo | P47: ma | Q47: di | R47: wo | S47: do | T47: vr | U47: za | V47: zo | W47: ma | X47: di | Y47: wo | Z47: do | AA47: vr | AB47: za | AC47: zo | AD47: ma | AE47: di | AF47: wo | AG47: do | AH47: vr | AI47: za
AI48: v
AK49: nacht | AL49: middag | AM49: ochtend
E50: n | I50: o | J50: o | K50: m | L50: m | M50: m | R50: o | S50: o | T50: n | U50: n | V50: n | AA50: o | AB50: m | AC50: m | AD50: n | AE50: n | AI50: o | AK50: =COUNTIF(E50:AI50,"n") -> 6 | AL50: =COUNTIF(E50:AI50,"m") -> 5 | AM50: =COUNTIF(E50:AI50,"o") -> 6 | AN50: =AK50+AL50+AM50 -> 17
B51: September | E51: zo | F51: ma | G51: di | H51: wo | I51: do | J51: vr | K51: za | L51: zo | M51: ma | N51: di | O51: wo | P51: do | Q51: vr | R51: za | S51: zo | T51: ma | U51: di | V51: wo | W51: do | X51: vr | Y51: za | Z51: zo | AA51: ma | AB51: di | AC51: wo | AD51: do | AE51: vr | AF51: za | AG51: zo | AH51: ma
E52: v | F52: v | G52: v | H52: v | I52: v | M52: v | N52: v | O52: v | P52: v | Q52: v
W53: z | X53: z | Y53: z | Z53: z | AE53: z | AF53: z | AG53: z | AH53: z | AK53: nacht | AL53: middag | AM53: ochtend
E54: o | F54: m | G54: m | H54: n | I54: n | M54: o | N54: o | O54: m | P54: m | Q54: m | V54: o | W54: o | X54: n | Y54: n | Z54: n | AE54: o | AF54: m | AG54: m | AH54: n | AK54: =COUNTIF(E54:AI54,"n") -> 6 | AL54: =COUNTIF(E54:AI54,"m") -> 7 | AM54: =COUNTIF(E54:AI54,"o") -> 6 | AN54: =AK54+AL54+AM54 -> 19
B55: Oktober | E55: di | F55: wo | G55: do | H55: vr | I55: za | J55: zo | K55: ma | L55: di | M55: wo | N55: do | O55: vr | P55: za | Q55: zo | R55: ma | S55: di | T55: wo | U55: do | V55: vr | W55: za | X55: zo | Y55: ma | Z55: di | AA55: wo | AB55: do | AC55: vr | AD55: za | AE55: zo | AF55: ma | AG55: di | AH55: wo | AI55: do
AK57: nacht | AL57: middag | AM57: ochtend
E58: n | I58: o | J58: o | K58: m | L58: m | M58: n | N58: n | R58: o | S58: o | T58: m | U58: m | V58: m | AA58: o | AB58: o | AC58: n | AD58: n | AE58: n | AK58: =COUNTIF(E58:AI58,"n") -> 6 | AL58: =COUNTIF(E58:AI58,"m") -> 5 | AM58: =COUNTIF(E58:AI58,"o") -> 6 | AN58: =AK58+AL58+AM58 -> 17
B59: November | E59: vr | F59: za | G59: zo | H59: ma | I59: di | J59: wo | K59: do | L59: vr | M59: za | N59: zo | O59: ma | P59: di | Q59: wo | R59: do | S59: vr | T59: za | U59: zo | V59: ma | W59: di | X59: wo | Y59: do | Z59: vr | AA59: za | AB59: zo | AC59: ma | AD59: di | AE59: wo | AF59: do | AG59: vr | AH59: za
AK61: nacht | AL61: middag | AM61: ochtend
E62: o | F62: m | G62: m | H62: n | I62: n | M62: o | N62: o | O62: m | P62: m | Q62: n | R62: n | V62: o | W62: o | X62: m | Y62: m | Z62: m | AE62: o | AF62: o | AG62: n | AH62: n | AK62: =COUNTIF(E62:AI62,"n") -> 6 | AL62: =COUNTIF(E62:AI62,"m") -> 7 | AM62: =COUNTIF(E62:AI62,"o") -> 7 | AN62: =AK62+AL62+AM62 -> 20
B63: December | E63: zo | F63: ma | G63: di | H63: wo | I63: do | J63: vr | K63: za | L63: zo | M63: ma | N63: di | O63: wo | P63: do | Q63: vr | R63: za | S63: zo | T63: ma | U63: di | V63: wo | W63: do | X63: vr | Y63: za | Z63: zo | AA63: ma | AB63: di | AC63: wo | AD63: do | AE63: vr | AF63: za | AG63: zo | AH63: ma | AI63: di
AK65: nacht | AL65: middag | AM65: ochtend
E66: n | J66: o | K66: m | L66: m | M66: n | N66: n | R66: o | S66: o | T66: m | U66: m | V66: n | W66: n | AA66: o | AB66: o | AC66: m | AD66: m | AE66: m | AK66: =COUNTIF(E66:AI66,"n") -> 5 | AL66: =COUNTIF(E66:AI66,"m") -> 7 | AM66: =COUNTIF(E66:AI66,"o") -> 5 | AN66: =AK66+AL66+AM66 -> 17
